bitfinex/quotes_BTCUSD_20240715
["timestamp","ask_amount","ask_price","bid_price","bid_amount"]
[1721024132707,0.19204669,63025.0,63024.0,0.0071]
[1721024132911,0.21814844,63025.0,63024.0,0.0071]
[1721024133317,0.002,63025.0,63024.0,0.8606029]
[1721024133548,0.002,63025.0,63024.0,1.1422079]
[1721024133549,0.001,63025.0,63024.0,1.1422079]
[1721024133780,0.005,63025.0,63024.0,1.1422079]
[1721024134014,0.004,63025.0,63024.0,1.139017]
[1721024134475,0.007,63025.0,63024.0,1.139017]
[1721024134980,0.004,63025.0,63024.0,1.139017]
[1721024135207,0.005,63025.0,63024.0,1.144017]
[1721024135433,0.001,63025.0,63024.0,1.144017]
[1721024135639,0.07023759,63028.0,63027.0,0.713977]
[1721024135841,0.07023759,63028.0,63027.0,0.712977]
[1721024136031,0.07004668,63028.0,63027.0,0.712977]
[1721024136423,0.07004668,63028.0,63027.0,0.426386]
[1721024136559,0.07004668,63028.0,63024.0,0.0765]
[1721024137221,0.001,63025.0,63024.0,0.510907]
[1721024137622,0.07104668,63028.0,63026.0,0.142796]
[1721024137824,0.02506724,63027.0,63026.0,0.142796]
[1721024138095,0.02506724,63027.0,63026.0,0.428392]
[1721024138319,0.07104668,63028.0,63027.0,0.142795]
[1721024139224,0.07004668,63028.0,63027.0,0.142795]
[1721024139422,0.09496684,63028.0,63027.0,0.142795]
[1721024140304,0.09496684,63028.0,63027.0,0.148795]
[1721024140305,0.09596684,63028.0,63027.0,0.148795]
[1721024140507,0.07104668,63028.0,63027.0,0.148795]
[1721024140715,0.09691781,63028.0,63027.0,0.152795]
[1721024141115,0.09591781,63028.0,63027.0,0.148795]
[1721024141531,0.09691781,63028.0,63027.0,0.152795]
[1721024142513,0.07204668,63028.0,63027.0,0.152795]
[1721024142785,0.09674969,63028.0,63027.0,0.152795]
[1721024145795,0.09672949,63028.0,63027.0,0.152795]
[1721024146231,0.02668281,63028.0,63027.0,0.152795]
[1721024146379,0.02668281,63028.0,63027.0,0.01]
[1721024146380,0.3650049,63028.0,63027.0,0.01]
[1721024146584,0.7933849,63028.0,63027.0,0.01]
[1721024146800,1.241452,63028.0,63027.0,0.01]
[1721024147025,1.242282,63028.0,63027.0,0.01]
[1721024147226,1.32612207,63028.0,63027.0,0.004]
[1721024147445,0.1198091,63018.0,63016.0,0.39486114]
[1721024147659,0.14455822,63017.0,63016.0,0.39486114]
[1721024148082,0.14455822,63017.0,63013.0,0.142826]
[1721024148284,0.14455822,63017.0,63010.0,0.285664]
[1721024148285,0.2256106,63016.0,63008.0,0.362673]
[1721024148491,0.2256106,63016.0,63003.0,0.00325443]
[1721024148492,0.1198091,63007.0,63004.0,0.0773]
[1721024148692,0.1198091,63007.0,63005.0,0.206469]
[1721024148693,0.02474912,63006.0,63005.0,0.206469]
[1721024148896,0.02474912,63006.0,63005.0,0.142845]
[1721024149107,0.02474912,63006.0,62997.0,0.01]
[1721024149108,0.0598091,63002.0,62997.0,0.01]
[1721024149309,0.02424148,63001.0,62999.0,0.06363]
[1721024149516,0.07004668,63005.0,62999.0,0.06363]
[1721024149671,0.07004668,63005.0,63003.0,0.14285]
[1721024149672,0.02424642,63004.0,63003.0,0.14285]
[1721024150312,0.02424642,63004.0,63003.0,0.14185]
[1721024150511,0.02424642,63004.0,63003.0,1.41325]
[1721024150911,0.02424642,63004.0,63001.0,0.285709]
[1721024151132,0.02424642,63004.0,63002.0,0.14285]
[1721024151340,0.02424642,63004.0,63001.0,0.285709]
[1721024151341,0.02424642,63004.0,63003.0,0.14285]
[1721024151564,0.02424642,63004.0,62997.0,0.295725]
[1721024151565,0.0942931,63004.0,62998.0,0.142859]
[1721024151757,0.02424642,63003.0,62999.0,0.142858]
[1721024151964,0.02424642,63002.0,62999.0,0.142858]
[1721024152221,0.07204668,63004.0,62999.0,0.142858]
[1721024152430,0.02418302,63003.0,62999.0,0.142858]
[1721024152968,0.07004668,63004.0,62999.0,0.142858]
[1721024153315,0.001,63002.0,62999.0,0.142858]
[1721024153757,0.07104668,63004.0,62999.0,0.142858]
[1721024153964,0.001,63003.0,62999.0,0.142858]
[1721024154163,0.001,63003.0,62999.0,0.143858]
[1721024154997,0.001,63003.0,62999.0,0.122858]
[1721024155175,0.001,63003.0,63000.0,0.142856]
[1721024155438,0.07004668,63004.0,63000.0,0.142856]
[1721024155613,0.18985578,63004.0,63000.0,0.142856]
[1721024155796,0.001,63002.0,63000.0,0.142856]
[1721024155999,0.18985578,63004.0,63000.0,0.142856]
[1721024156175,0.1208091,63003.0,63000.0,0.142856]
[1721024156377,0.1218091,63003.0,63000.0,0.142856]
[1721024156631,0.1208091,63003.0,63000.0,0.142856]
[1721024156886,0.25565578,62998.0,62997.0,0.073631]
[1721024157051,0.36025215,62998.0,62997.0,0.01]
[1721024157272,0.50311315,62998.0,62997.0,0.01]
[1721024157495,0.68921315,62998.0,62997.0,0.01]
[1721024157867,0.54635215,62998.0,62997.0,0.01]
[1721024158074,0.54735215,62998.0,62997.0,0.011]
[1721024158472,0.44275578,62998.0,62997.0,0.011]
[1721024158690,0.4658106,62998.0,62997.0,0.011]
[1721024159115,0.46599973,62998.0,62997.0,0.011]
[1721024159481,0.27989973,62998.0,62997.0,0.011]
[1721024159680,0.19085578,62998.0,62997.0,0.011]
[1721024159877,0.07104668,62998.0,62997.0,0.43959]
[1721024160142,0.001,62998.0,62997.0,0.725317]
[1721024160310,0.07104668,62998.0,62997.0,0.725317]
[1721024160733,0.07204668,62998.0,62997.0,0.44159]
[1721024160930,0.07204668,62998.0,62997.0,0.727317]
[1721024162710,0.002,62998.0,62997.0,0.727317]
[1721024162914,0.002,62998.0,62997.0,0.7275079]
[1721024163115,0.07204668,62998.0,62997.0,0.727317]
[1721024164330,0.002,62998.0,62997.0,0.727317]
[1721024164535,0.002,62998.0,62997.0,1.0132349]
[1721024164918,0.002,62998.0,62997.0,0.7275079]
[1721024165117,0.07204668,62998.0,62997.0,0.727317]
[1721024166017,0.07204668,62998.0,62997.0,0.44159]
[1721024166770,0.07204668,62998.0,62997.0,0.727317]
[1721024166922,0.07204668,62998.0,62997.0,0.4417809]
[1721024167129,0.07204668,62998.0,62997.0,0.44159]
[1721024168320,0.07204668,62998.0,62997.0,0.155863]
[1721024168849,0.07204668,62998.0,62997.0,0.44159]
[1721024169051,0.07204668,62998.0,62997.0,0.013]
[1721024169254,0.07204668,62998.0,62997.0,0.44159]
[1721024169456,0.07204668,62998.0,62997.0,0.727317]
[1721024174055,0.002,62998.0,62997.0,0.8730079]
[1721024174268,0.002,62998.0,62997.0,1.3587349]
[1721024174460,0.001,62998.0,62997.0,1.3567349]
[1721024174660,0.001,62998.0,62997.0,1.3577349]
[1721024174910,0.002,62998.0,62997.0,1.1577349]
[1721024175121,0.002,62998.0,62997.0,1.1567349]
[1721024175272,0.001,62998.0,62997.0,1.1567349]
[1721024175456,0.003,62998.0,62997.0,1.1657349]
[1721024175875,0.003,62998.0,62997.0,1.3657349]
[1721024176107,0.002,62998.0,62997.0,2.25814222]
[1721024176330,0.003,62998.0,62997.0,2.56250575]
[1721024176711,0.003,62998.0,62997.0,2.55844222]
[1721024176712,0.001,62998.0,62997.0,2.55844222]
[1721024176872,0.08213,63028.0,63027.0,0.142795]
[1721024176873,0.07087668,63028.0,63027.0,0.142795]
[1721024177073,0.07087668,63028.0,63027.0,0.427386]
[1721024177074,0.0942425,63028.0,63027.0,0.427386]
[1721024177251,0.0942407,63028.0,63027.0,0.427386]
[1721024177479,0.02419402,63028.0,63027.0,0.711977]
[1721024177669,0.00083,63028.0,63027.0,0.710977]
[1721024177856,0.00083,63028.0,63027.0,0.7111679]
[1721024178497,0.00083,63028.0,63027.0,1.2037589]
[1721024178498,0.00183,63028.0,63027.0,1.2037589]
[1721024179025,0.00183,63028.0,63027.0,1.39401222]
[1721024179231,0.00183,63028.0,63027.0,1.47611222]
[1721024179375,0.00183,63028.0,63027.0,1.76170322]
[1721024179574,0.00183,63028.0,63027.0,1.48111222]
[1721024179746,0.00183,63028.0,63027.0,1.47411222]
[1721024179747,0.00083,63028.0,63027.0,1.47411222]
[1721024180376,0.00083,63028.0,63027.0,1.48111222]
[1721024180621,0.00083,63028.0,63027.0,1.47411222]
[1721024180756,0.00083,63028.0,63027.0,1.75470322]
[1721024180956,0.00083,63028.0,63027.0,1.76870322]
[1721024181368,0.00083,63028.0,63027.0,1.48311222]
[1721024182017,0.00083,63028.0,63027.0,1.78063209]
[1721024182359,0.00083,63028.0,63027.0,2.34752309]
[1721024182572,0.04909163,63040.0,63039.0,1.6480699]
[1721024182709,0.00083,63048.0,63047.0,0.713752]
[1721024182902,0.00083,63048.0,63047.0,0.72461442]
[1721024183143,0.00083,63048.0,63047.0,0.72480532]
[1721024184149,0.00083,63048.0,63047.0,0.73680532]
[1721024184730,0.00083,63048.0,63047.0,0.72480532]
[1721024184933,0.00083,63048.0,63047.0,1.01030632]
[1721024185131,0.00083,63048.0,63047.0,1.02411542]
[1721024185539,0.00083,63048.0,63047.0,0.75261442]
[1721024186103,0.00083,63048.0,63047.0,0.73861442]
[1721024186549,0.00083,63048.0,63047.0,0.72461442]
[1721024186966,0.00083,63048.0,63047.0,0.73861442]
[1721024187723,0.00083,63048.0,63047.0,0.75261442]
[1721024188353,0.1206391,63048.0,63047.0,0.03886242]
[1721024188560,0.33318578,63048.0,63047.0,0.028]
[1721024188957,0.33318578,63048.0,63047.0,0.03869329]
[1721024189393,0.47593378,63048.0,63047.0,0.02469329]
[1721024189596,0.33318578,63048.0,63047.0,0.02469329]
[1721024189821,0.33318578,63048.0,63047.0,0.021]
[1721024190242,0.33318578,63048.0,63047.0,0.03169329]
[1721024190444,0.33318578,63048.0,63047.0,0.021]
[1721024190628,0.33318578,63048.0,63047.0,0.007]
[1721024191596,0.33318578,63048.0,63047.0,0.016]
[1721024192190,0.07087668,63048.0,63047.0,0.016]
[1721024192591,0.07087668,63048.0,63047.0,0.45494429]
[1721024193421,0.07087668,63048.0,63047.0,0.74044529]
[1721024193622,0.07087668,63048.0,63047.0,0.45494429]
[1721024194138,0.07087668,63048.0,63047.0,0.45513519]
[1721024194279,0.07087668,63048.0,63047.0,0.74063619]
[1721024194494,0.07087668,63048.0,63047.0,0.45513519]
[1721024194917,0.07087668,63048.0,63047.0,0.44613519]
[1721024195126,0.07087668,63048.0,63047.0,0.45313519]
[1721024195609,0.00083,63048.0,63047.0,0.73863619]
[1721024195807,0.00083,63048.0,63047.0,0.73163619]
[1721024196047,0.00083,63048.0,63047.0,0.72718372]
[1721024196223,0.00083,63048.0,63047.0,0.73218372]
[1721024196405,0.00083,63048.0,63047.0,0.73199282]
[1721024196623,0.00083,63048.0,63047.0,0.72718372]
[1721024197146,0.00083,63048.0,63047.0,0.73299282]
[1721024197494,0.00083,63048.0,63047.0,0.44749182]
[1721024198347,0.00083,63048.0,63047.0,0.44768272]
[1721024198727,0.00083,63048.0,63047.0,0.44749182]
[1721024201114,0.00083,63048.0,63047.0,0.73318372]
[1721024201293,0.00083,63048.0,63047.0,0.73299282]
[1721024201817,0.00083,63048.0,63047.0,0.44749182]
[1721024202033,0.1206391,63048.0,63047.0,0.02369329]
[1721024202234,0.00083,63048.0,63047.0,0.02369329]
[1721024202420,0.00083,63048.0,63047.0,0.16644329]
[1721024202614,0.1206391,63048.0,63047.0,0.01769329]
[1721024202841,0.33188578,63048.0,63047.0,0.01769329]
[1721024203045,0.33188578,63048.0,63047.0,0.01669329]
[1721024203469,0.33188578,63048.0,63047.0,0.01069329]
[1721024203905,0.33188578,63048.0,63047.0,0.028]
[1721024204091,0.33188578,63048.0,63047.0,0.03877966]
[1721024204307,0.19068578,63048.0,63047.0,0.03877966]
[1721024204462,0.07087668,63048.0,63047.0,0.03877966]
[1721024204678,0.19068578,63048.0,63047.0,0.03877966]
[1721024205836,0.33343378,63048.0,63047.0,0.03877966]
[1721024206037,0.61892978,63048.0,63047.0,0.03877966]
[1721024206253,0.61892978,63048.0,63047.0,0.028]
[1721024206400,0.63901711,63048.0,63047.0,0.028]
[1721024206808,0.07004668,63041.0,63038.0,0.14277]
[1721024207026,0.13574668,63041.0,63038.0,0.14277]
[1721024207246,0.13574668,63041.0,63039.0,0.01082617]
[1721024207774,0.13574668,63041.0,63040.0,0.01082036]
[1721024208106,0.13574668,63041.0,63037.0,0.00019096]
[1721024208330,0.1198091,63038.0,63037.0,0.00019096]
[1721024208530,0.18985578,63038.0,63037.0,0.00019096]
[1721024208809,0.76093978,63038.0,63037.0,0.00019096]
[1721024208963,0.92353477,63038.0,63037.0,0.01106751]
[1721024209119,0.63799277,63038.0,63037.0,0.00019096]
[1721024209680,0.61816878,63038.0,63037.0,0.00019096]
[1721024209873,0.61816878,63038.0,63037.0,0.01019096]
[1721024209874,0.3526116,63038.0,63037.0,0.01019096]
[1721024210079,0.20984047,63038.0,63037.0,0.01019096]
[1721024210620,0.20984047,63038.0,63037.0,0.16388159]
[1721024210863,0.20984047,63038.0,63037.0,0.02110859]
[1721024211078,0.18985578,63038.0,63037.0,0.02110859]
[1721024211259,0.18985578,63038.0,63037.0,0.03291763]
[1721024211663,0.07004668,63038.0,63037.0,0.03291763]
[1721024211864,0.07004668,63038.0,63037.0,0.46142753]
[1721024212030,0.07004668,63038.0,63037.0,0.74697353]
[1721024212673,0.07004668,63039.0,63038.0,0.713855]
[1721024213073,0.07004668,63039.0,63038.0,0.72473806]
[1721024214098,0.07004668,63039.0,63038.0,0.73573806]
[1721024215069,0.07004668,63039.0,63038.0,0.74473806]
[1721024216540,0.07004668,63039.0,63038.0,0.733855]
[1721024216738,0.07004668,63039.0,63038.0,0.7340459]
[1721024216940,0.07004668,63039.0,63038.0,0.733855]
[1721024217663,0.07004668,63039.0,63038.0,0.448313]
[1721024218206,0.07004668,63039.0,63038.0,0.733855]
[1721024220771,0.07004668,63041.0,63040.0,0.428298]
[1721024221259,0.07004668,63041.0,63040.0,0.4284889]
[1721024221412,0.06985578,63041.0,63040.0,0.428298]
[1721024221774,0.06985578,63047.0,63043.0,0.0001909]
[1721024221970,0.06985578,63047.0,63046.0,0.1429429]
[1721024222179,0.06985578,63047.0,63046.0,0.142752]
[1721024222381,0.06985578,63047.0,63046.0,0.713762]
[1721024222850,0.06985578,63047.0,63046.0,0.428257]
[1721024223042,0.06985578,63047.0,63046.0,0.713762]
[1721024223219,0.07085578,63047.0,63046.0,0.713762]
[1721024223625,0.06985578,63047.0,63046.0,0.713762]
[1721024224188,0.06985578,63047.0,63046.0,0.7209529]
[1721024224394,0.06985578,63047.0,63046.0,1.0064579]
[1721024224555,0.06985578,63047.0,63046.0,0.720762]
[1721024224758,0.06985578,63047.0,63046.0,0.728762]
[1721024225121,0.06985578,63047.0,63046.0,1.014267]
[1721024225777,0.06985578,63047.0,63046.0,1.0144579]
[1721024226015,0.06985578,63047.0,63046.0,1.014267]
[1721024226702,0.06985578,63047.0,63046.0,0.728762]
[1721024227361,0.06985578,63047.0,63046.0,1.014267]
[1721024229347,0.00083,63048.0,63047.0,1.0812439]
[1721024231079,0.00083,63048.0,63047.0,1.0882439]
[1721024231281,0.00083,63048.0,63047.0,1.0932439]
[1721024233042,0.00083,63048.0,63047.0,1.1563439]
[1721024233734,0.00083,63048.0,63047.0,1.1513439]
[1721024233878,0.00083,63048.0,63047.0,1.1583439]
[1721024234077,0.00083,63048.0,63047.0,1.1723439]
[1721024234601,0.00083,63048.0,63047.0,1.1443439]
[1721024234805,0.00083,63048.0,63047.0,1.1723439]
[1721024236170,0.00083,63048.0,63047.0,1.1583439]
[1721024236376,0.00083,63048.0,63047.0,1.1723439]
[1721024236969,0.00083,63048.0,63047.0,1.1443439]
[1721024237171,0.00083,63048.0,63047.0,1.1583439]
[1721024237412,0.00083,63048.0,63047.0,1.1723439]
[1721024237618,0.00083,63048.0,63047.0,1.1583439]
[1721024237881,0.00083,63048.0,63047.0,1.4438449]
[1721024238098,0.00083,63048.0,63047.0,1.4578449]
[1721024238819,0.00083,63048.0,63047.0,1.66964793]
[1721024239012,0.00083,63048.0,63047.0,1.86964793]
[1721024239760,0.00083,63048.0,63047.0,1.85564793]
[1721024240087,0.00083,63048.0,63047.0,2.37129315]
[1721024240208,0.00083,63048.0,63047.0,2.40829315]
[1721024240851,0.00083,63048.0,63047.0,2.39429315]
[1721024241327,0.00083,63048.0,63047.0,2.40829315]
[1721024241501,0.00083,63048.0,63047.0,2.42229315]
[1721024241934,0.00083,63048.0,63047.0,2.39429315]
[1721024242134,0.00083,63048.0,63047.0,2.40829315]
[1721024244416,0.00083,63048.0,63047.0,2.48259315]
[1721024248293,0.00083,63048.0,63047.0,2.59399315]
[1721024249881,0.00083,63048.0,63047.0,2.40829315]
[1721024250485,0.00083,63048.0,63047.0,2.72551315]
[1721024251155,0.00083,63048.0,63047.0,3.21012415]
[1721024251815,9.98852101,63055.0,63054.0,2.7110699]
[1721024251984,9.98852101,63055.0,63054.0,3.4560903]
[1721024253015,9.98852101,63055.0,63054.0,3.4700903]
[1721024253414,9.98852101,63055.0,63054.0,3.4930903]
[1721024253624,9.98852101,63055.0,63054.0,3.5070903]
[1721024254232,9.98852101,63055.0,63054.0,3.4930903]
[1721024254633,9.98852101,63055.0,63054.0,3.5070903]
[1721024257196,9.98852101,63055.0,63054.0,3.1792599]
[1721024258019,9.98852101,63055.0,63054.0,3.2428209]
[1721024260275,9.98852101,63055.0,63054.0,3.1428209]
[1721024260404,9.98852101,63055.0,63054.0,3.2428209]
[1721024260629,9.98852101,63055.0,63054.0,3.1788209]
[1721024261049,9.98852101,63055.0,63054.0,3.0788209]
[1721024261224,9.98852101,63055.0,63054.0,3.1788209]
[1721024262430,9.98852101,63055.0,63054.0,2.3418209]
[1721024262632,9.98852101,63055.0,63054.0,3.0418209]
[1721024262888,9.98852101,63055.0,63054.0,1.79115853]
[1721024263106,9.98852101,63055.0,63054.0,2.27715853]
[1721024263394,9.98852101,63055.0,63054.0,2.29115853]
[1721024263732,9.98852101,63055.0,63054.0,2.30515853]
[1721024263943,9.98852101,63055.0,63054.0,2.29115853]
[1721024264355,9.98852101,63055.0,63054.0,2.30515853]
[1721024264627,10.04992101,63055.0,63054.0,2.30515853]
[1721024264804,10.04992101,63055.0,63054.0,2.29115853]
[1721024265214,10.04992101,63055.0,63054.0,2.30515853]
[1721024265379,10.04992101,63055.0,63054.0,1.79115853]
[1721024265584,10.04992101,63055.0,63054.0,2.27715853]
[1721024266299,9.98852101,63055.0,63054.0,2.27715853]
[1721024266880,9.98852101,63055.0,63054.0,2.49115853]
[1721024267086,9.98852101,63055.0,63054.0,2.57305853]
[1721024267444,9.98852101,63055.0,63054.0,2.62015853]
[1721024268227,9.98852101,63055.0,63054.0,2.73415853]
[1721024268418,9.98852101,63055.0,63054.0,2.84545853]
[1721024269023,9.98852101,63055.0,63054.0,2.83145853]
[1721024269460,9.98852101,63055.0,63054.0,2.84545853]
[1721024269825,9.98852101,63055.0,63054.0,2.83145853]
[1721024270494,9.98852101,63055.0,63054.0,2.84545853]
[1721024270896,9.98852101,63055.0,63054.0,2.83145853]
[1721024271208,9.98852101,63055.0,63054.0,2.64545853]
[1721024271631,9.98852101,63055.0,63054.0,2.48435853]
[1721024271842,9.98852101,63055.0,63054.0,2.50245853]
[1721024272254,9.98852101,63055.0,63054.0,2.30515853]
[1721024272710,9.98852101,63055.0,63054.0,2.29115853]
[1721024272941,9.98852101,63055.0,63054.0,2.30515853]
[1721024273296,9.98852101,63055.0,63054.0,2.27715853]
[1721024273470,9.98852101,63055.0,63054.0,1.094423]
[1721024273847,9.98852101,63055.0,63054.0,1.108423]
[1721024274022,10.01062405,63055.0,63054.0,1.108423]
[1721024274172,10.01062405,63055.0,63054.0,1.094423]
[1721024274377,10.08712405,63055.0,63054.0,1.094423]
[1721024275044,10.08712405,63055.0,63054.0,1.108423]
[1721024275560,10.08712405,63055.0,63054.0,0.408751]
[1721024275561,10.34318893,63055.0,63054.0,0.408751]
[1721024275767,10.41748893,63055.0,63054.0,0.33119]
[1721024276099,10.41748893,63055.0,63054.0,0.473924]
[1721024276333,10.34318893,63055.0,63054.0,0.33119]
[1721024276942,10.34295931,63055.0,63054.0,0.33119]
[1721024277144,10.34295931,63055.0,63054.0,0.32819]
[1721024277319,10.34312375,63055.0,63054.0,0.32819]
[1721024277522,10.34312375,63055.0,63054.0,0.33819]
[1721024278748,10.22331465,63055.0,63054.0,0.480924]
[1721024279386,10.22331465,63055.0,63054.0,1.0520529]
[1721024279618,10.22331465,63055.0,63054.0,1.051862]
[1721024279822,10.05492101,63055.0,63054.0,1.8375219]
[1721024280024,9.98852101,63055.0,63054.0,1.8375219]
[1721024280221,9.98852101,63055.0,63054.0,2.1229909]
[1721024281040,9.98833011,63055.0,63054.0,2.1229909]
[1721024281564,9.98833011,63055.0,63054.0,1.3375219]
[1721024281777,10.05193011,63055.0,63054.0,1.3375219]
[1721024281915,10.05193011,63055.0,63054.0,1.8375219]
[1721024282735,10.05193011,63055.0,63054.0,1.3375219]
[1721024282913,10.05193011,63055.0,63054.0,1.8375219]
[1721024283321,10.05193011,63055.0,63054.0,1.3375219]
[1721024283973,9.98833011,63055.0,63054.0,1.3375219]
[1721024285454,9.98833011,63055.0,63054.0,1.8229909]
[1721024285659,9.98833011,63055.0,63054.0,1.6229909]
[1721024290892,9.98833011,63055.0,63054.0,2.2617909]
[1721024291053,9.98833011,63055.0,63054.0,2.3847909]
[1721024292976,9.98833011,63055.0,63054.0,2.0847909]
[1721024293177,9.98833011,63055.0,63054.0,1.9229909]
[1721024293379,9.98833011,63055.0,63054.0,2.2229909]
[1721024293992,9.98833011,63055.0,63054.0,1.4375219]
[1721024294376,9.98833011,63055.0,63054.0,1.437331]
[1721024294919,9.98833011,63055.0,63054.0,1.426331]
[1721024295291,9.98833011,63055.0,63054.0,0.769393]
[1721024295498,10.06743011,63055.0,63054.0,0.769393]
[1721024295698,10.12903011,63055.0,63054.0,0.769393]
[1721024295898,10.12903011,63055.0,63054.0,0.783393]
[1721024296146,10.12903011,63055.0,63054.0,0.759393]
[1721024296270,10.12903011,63055.0,63054.0,0.745393]
[1721024296626,10.12903011,63055.0,63054.0,0.773393]
[1721024297205,9.98833011,63055.0,63054.0,1.4696219]
[1721024297407,9.98833011,63055.0,63054.0,1.7550909]
[1721024298616,9.98833011,63055.0,63054.0,1.9550909]
[1721024299016,9.98833011,63055.0,63054.0,2.0550909]
[1721024299213,9.98833011,63055.0,63054.0,2.0690909]
[1721024299509,9.98833011,63055.0,63054.0,2.1690909]
[1721024302085,9.98883011,63055.0,63054.0,2.1690909]
[1721024303475,9.98883011,63055.0,63054.0,2.1920909]
[1721024304662,9.98883011,63055.0,63054.0,2.69350412]
[1721024304860,9.98883011,63055.0,63054.0,3.24805703]
[1721024305241,9.95054146,63055.0,63054.0,3.41528156]
[1721024305447,9.91210146,63055.0,63054.0,3.70074848]
[1721024305626,9.91210146,63055.0,63054.0,3.62975484]
[1721024305829,9.87598246,63055.0,63054.0,3.62975484]
[1721024306458,9.87598246,63055.0,63054.0,3.70074449]
[1721024307547,9.80170246,63055.0,63054.0,3.70074449]
[1721024307827,9.80170246,63055.0,63054.0,3.62975484]
[1721024308034,9.78070246,63055.0,63054.0,3.62975484]
[1721024308358,9.75570246,63055.0,63054.0,3.63066784]
[1721024308508,9.72680246,63055.0,63054.0,3.63065744]
[1721024308830,9.68929246,63055.0,63054.0,3.70162578]
[1721024308986,9.68929246,63055.0,63054.0,3.88993097]
[1721024308987,9.63551635,63055.0,63054.0,3.88993097]
[1721024309190,9.05884639,63055.0,63054.0,4.37337477]
[1721024309414,7.374388,63055.0,63054.0,5.13274945]
[1721024309635,7.2905288,63055.0,63054.0,4.96876681]
[1721024309838,7.2905288,63055.0,63054.0,4.76876681]
[1721024310183,7.2905288,63055.0,63054.0,3.8789759]
[1721024310416,7.2905288,63055.0,63054.0,4.33446695]
[1721024310620,7.2905288,63055.0,63054.0,4.41940116]
[1721024310994,7.2905288,63055.0,63054.0,2.7105837]
[1721024311195,7.2905288,63055.0,63054.0,2.4169039]
[1721024311538,7.4356288,63055.0,63054.0,1.331244]
[1721024311774,7.4356288,63055.0,63054.0,0.760306]
[1721024311936,7.4356288,63055.0,63054.0,0.746306]
[1721024312314,7.4356288,63055.0,63054.0,0.774306]
[1721024312522,7.4356288,63055.0,63054.0,1.059775]
[1721024312721,7.4356288,63055.0,63054.0,0.332103]
[1721024312929,7.6526567,63055.0,63054.0,0.318103]
[1721024313141,7.5328476,63055.0,63054.0,0.474837]
[1721024313413,7.6526567,63055.0,63054.0,0.474837]
[1721024313601,7.6526567,63055.0,63054.0,0.332103]
[1721024313807,7.5328476,63055.0,63054.0,0.332103]
[1721024314151,7.5328476,63055.0,63054.0,0.346103]
[1721024314152,7.6526567,63055.0,63054.0,0.346103]
[1721024314742,7.65334826,63055.0,63054.0,0.346103]
[1721024315273,7.65334826,63055.0,63054.0,0.332103]
[1721024315491,7.65334826,63055.0,63054.0,0.318103]
[1721024315706,7.65334826,63055.0,63054.0,0.326103]
[1721024315886,7.65334826,63055.0,63054.0,0.335103]
[1721024317854,7.62529368,63055.0,63054.0,0.335103]
[1721024318064,7.65364033,63055.0,63054.0,0.335103]
[1721024318443,7.65363994,63055.0,63054.0,0.335103]
[1721024321225,7.65363994,63055.0,63054.0,0.763306]
[1721024321226,7.45228131,63055.0,63054.0,0.763306]
[1721024321489,7.42418458,63055.0,63054.0,1.040775]
[1721024321767,7.2905288,63055.0,63054.0,1.0409659]
[1721024321982,7.2905288,63055.0,63054.0,1.039775]
[1721024322203,7.2905288,63055.0,63054.0,1.3344349]
[1721024322419,7.2905288,63055.0,63054.0,1.3264349]
[1721024322420,7.36038458,63055.0,63054.0,1.3264349]
[1721024322648,7.2905288,63055.0,63054.0,1.7169039]
[1721024322856,7.2905288,63055.0,63054.0,2.0999039]
[1721024323058,7.2905288,63055.0,63054.0,2.4751729]
[1721024323257,7.2905288,63055.0,63054.0,2.51412712]
[1721024323705,7.2905288,63055.0,63054.0,2.54012712]
[1721024323998,7.2905288,63055.0,63054.0,2.52612712]
[1721024324136,7.27126259,63055.0,63054.0,2.97889612]
[1721024324337,7.27126259,63055.0,63054.0,3.02624856]
[1721024324588,7.27126259,63055.0,63054.0,2.97889612]
[1721024324787,7.24426059,63055.0,63054.0,3.11061533]
[1721024324996,7.09059203,63055.0,63054.0,3.27273324]
[1721024325166,6.9991342,63055.0,63054.0,3.70671223]
[1721024325371,6.9991342,63055.0,63054.0,3.64978082]
[1721024325568,6.9991342,63055.0,63054.0,3.7184857]
[1721024326037,6.9991342,63055.0,63054.0,3.65178082]
[1721024326240,6.9606042,63055.0,63054.0,3.65178082]
[1721024326415,6.9606042,63055.0,63054.0,3.63778082]
[1721024326571,6.9606042,63055.0,63054.0,3.62378082]
[1721024326775,6.9606042,63055.0,63054.0,3.70869341]
[1721024326960,6.9165082,63055.0,63054.0,3.70869341]
[1721024327362,6.9165082,63055.0,63054.0,3.28605612]
[1721024327582,6.8915082,63055.0,63054.0,3.69468238]
[1721024327784,6.8776682,63055.0,63054.0,3.34296286]
[1721024328007,6.8776682,63055.0,63054.0,3.31932353]
[1721024328215,6.8776682,63055.0,63054.0,3.52446657]
[1721024328504,6.8776682,63055.0,63054.0,3.40675]
[1721024328722,6.8394082,63055.0,63054.0,3.27272473]
[1721024329105,6.8394082,63055.0,63054.0,3.28672473]
[1721024329317,6.8394082,63055.0,63054.0,3.46802473]
[1721024329525,6.8394082,63055.0,63054.0,3.44002473]
[1721024329892,6.8394082,63055.0,63054.0,3.46802473]
[1721024330290,6.8394082,63055.0,63054.0,3.45401002]
[1721024330466,6.8394082,63055.0,63054.0,2.69275]
[1721024330669,6.8394082,63055.0,63054.0,2.70675]
[1721024330873,6.8394082,63055.0,63054.0,3.40675]
[1721024331234,6.8394082,63055.0,63054.0,2.70675]
[1721024331435,6.8394082,63055.0,63054.0,3.40675]
[1721024331722,6.8394082,63055.0,63054.0,2.72075]
[1721024331966,6.8394082,63055.0,63054.0,3.42075]
[1721024332132,6.8394082,63055.0,63054.0,3.39275]
[1721024332375,6.8394082,63055.0,63054.0,3.42075]
[1721024332798,6.8394082,63055.0,63054.0,2.27945]
[1721024333022,6.8394082,63055.0,63054.0,1.890181]
[1721024333194,6.8394082,63055.0,63054.0,2.504181]
[1721024333451,6.8394082,63055.0,63054.0,2.490181]
[1721024333634,6.8394082,63055.0,63054.0,2.690181]
[1721024333768,6.8394082,63055.0,63054.0,1.990181]
[1721024333965,6.8394082,63055.0,63054.0,2.704181]
[1721024334421,6.8394082,63055.0,63054.0,2.127181]
[1721024334619,6.8394082,63055.0,63054.0,2.827181]
[1721024334838,6.8399082,63055.0,63054.0,2.813181]
[1721024335052,6.60100457,63055.0,63054.0,3.92965126]
[1721024335219,5.76972534,63055.0,63054.0,5.47078319]
[1721024335431,5.74018638,63055.0,63054.0,5.6214162]
[1721024335626,5.74018638,63055.0,63054.0,5.33862379]
[1721024335857,5.74018638,63055.0,63054.0,5.44707723]